Cogmind - Beta 10.2 @@@ ROGUE MODE // 2021.06.04 @ 11:12:41 Player: sentrybuster Result: Destroyed by H-88 Terminator with KE Penetrator Performance ------------- Evolutions (9) 4500 Regions Visited (18) 3600 Robots Destroyed (210) 1050 Value Destroyed (8742) 8742 Prototype IDs (21) 420 Alien Tech Used (0) 0 Bonus (2281) 2281 TOTAL SCORE: 20593 Bonus ------- High Alert Combat Kills 518 Follower Combat Kills 1384 Built Enhanced Grunts 300 Met R17 at Cetus 500 Friendly Fire -421 Cogmind --------- Core Integrity 0/1600 Matter 7/300 Energy 82/100 System Corruption 3% Temperature Cool (0) Movement Core (100) Ox1 Location -1/Access Parts ------- > --- POWER (1) -------- (None) > --- PROPULSION (6) --- (None) > --- UTILITY (13) ----- Enhanced Optical Array Experimental Signal Interpreter > --- WEAPON (5) ------- Centrium Greatsword > --- INVENTORY (4) ---- Light Antimatter Reactor Linear Accelerator Peak State ------------ > --- POWER ------------ Quantum Reactor > --- PROPULSION ------- Biometal Medium Treads Flexi-carbon Leg Flexi-carbon Leg Myomer Leg Myomer Leg > --- UTILITY ---------- Advanced Heat Sink Advanced Heat Sink High-capacity Matter Pod Experimental Signal Interpreter Improved Armor Integrity Analyzer Improved Kinecellerator Improved Phase Shifter Centrium Medium Armor Plating Centrium Medium Armor Plating Improved System Backup Module > --- WEAPON ----------- Coil Gun Improved Heavy Machine Gun Railgun Improved KE Penetrator Improved KE Penetrator > --- INVENTORY -------- Light Antimatter Reactor Matter Compressor Focal Shield Improved KE Penetrator [Rating: 135] Favorites ----------- Power Fission Core Engine Improved Ion Engine Power Core Fission Core Reactor Quantum Reactor Propulsion Aluminum Leg Treads Medium Treads Leg Aluminum Leg Wheel Wheel Flight Unit Experimental Q-thruster Utility Seismic Analyzer Device Advanced Heat Sink Storage Small Storage Unit Processor Seismic Analyzer Hackware Hacking Suite Protection Centrium Medium Armor Plating Weapon Improved Heavy Machine Gun Energy Gun Quantum Rifle Energy Cannon Compact HERF Cannon Ballistic Gun Improved Heavy Machine Gun Ballistic Cannon Magnetic Acceleration Cannon Launcher Precision Grenade Launcher Special Weapon Mining Laser Impact Weapon Power Maul Slashing Weapon Katana Build | -11 -10 -10 -9 -9 -9 -8 -8 -7 -7 -7 -6 -6 -6 -5 -4 -3 -2 -1 ------- Run | Scr Mat Min Mat Min Exi Min Mat Fac Was Fac Fac Ext Cet Fac Fac Res Res Acc Slots Evolved 18 | . . . 2 . . . 2 2 . . 2 . . 2 2 2 2 2 Power . | . . . . . . . . . . . . . . . . . . . Propulsion 4 | . . . . . . . 1 . . . . . . 1 . 1 1 . Utility 11 | . . . 1 . . . 1 1 . . 2 . . . 2 1 1 2 Weapon 3 | . . . 1 . . . . 1 . . . . . 1 . . . . Parts Attached 239 | 7 7 6 35 1 10 14 23 6 1 2 31 17 6 3 5 25 32 8 Power 15 | 1 . 1 3 . 1 . 3 . . . 1 1 1 . . 1 2 . Engine 8 | 1 . 1 2 . 1 . 2 . . . . 1 . . . . . . Core 3 | . . . 1 . . . 1 . . . 1 . . . . . . . Reactor 4 | . . . . . . . . . . . . . 1 . . 1 2 . Propulsion 64 | 2 . 2 6 . 1 3 4 4 1 . 14 5 . 1 2 8 7 4 Treads 15 | . . . . . . . . . . . 6 . . . . 5 3 1 Leg 38 | 2 . 2 6 . 1 3 4 4 1 . 4 5 . 1 2 3 . . Wheel 4 | . . . . . . . . . . . 4 . . . . . . . Hover . | . . . . . . . . . . . . . . . . . . . Flight 7 | . . . . . . . . . . . . . . . . . 4 3 Utility 79 | 2 . . 13 1 2 8 8 1 . 1 8 7 2 2 2 10 11 1 Device 36 | 1 . . 6 1 2 4 3 . . . 4 3 . 1 1 4 6 . Storage 17 | 1 . . 6 . . 3 1 1 . . 1 . . 1 . 3 . . Processor 8 | . . . 1 . . . . . . 1 1 . . . 1 2 2 . Hackware 2 | . . . . . . . . . . . 1 . . . . . . 1 Protection 16 | . . . . . . 1 4 . . . 1 4 2 . . 1 3 . Artifact . | . . . . . . . . . . . . . . . . . . . Weapon 81 | 2 7 3 13 . 6 3 8 1 . 1 8 4 3 . 1 6 12 3 Energy Gun 3 | . . . . . . . . . . . . . . . . 2 1 . Energy Cannon 4 | . . . . . . . . . . . . . . . . 1 3 . Ballistic Gun 42 | 2 3 1 8 . 5 1 4 1 . . 2 4 3 . 1 3 4 . Ballistic Cannon 17 | . 1 1 . . . 1 3 . . . 6 . . . . . 3 2 Launcher 1 | . . . . . . . . . . 1 . . . . . . . . Special Weapon 11 | . 3 1 5 . 1 1 . . . . . . . . . . . . Impact Weapon 1 | . . . . . . . . . . . . . . . . . 1 . Slashing Weapon 2 | . . . . . . . 1 . . . . . . . . . . 1 Piercing Weapon . | . . . . . . . . . . . . . . . . . . . Special Melee Weapon . | . . . . . . . . . . . . . . . . . . . Unidentified Prototypes 16 | . . . . . . . 1 . . 1 2 . 2 . 1 1 5 3 Parts Lost 81 | . . 3 1 . . 5 14 . 2 . 3 9 2 . 2 17 16 7 Power 8 | . . 1 1 . . . 3 . . . . 1 . . . 1 . 1 Propulsion 24 | . . 1 . . . 1 2 . 1 . 1 2 . . 2 4 5 5 Utility 22 | . . . . . . . 5 . . . 1 3 . . . 6 6 1 Weapon 27 | . . 1 . . . 4 4 . 1 . 1 3 2 . . 6 5 . Highest Loss Streak 11 | . . 2 1 . . 2 4 . 2 . 1 5 2 . 2 11 7 4 Average Slot Usage (%) 86 | . 99 92 98 100 96 89 83 94 68 2 76 97 99 90 88 87 67 20 Engine 3 | . 14 8 7 . 5 11 6 7 5 . . . 1 . . . . . Core 2 | . . . 3 11 5 . 1 . . . 5 5 . . . . . . Treads 3 | . . . . . . . . . . . 11 . . . . 4 13 . Leg 16 | . 28 27 22 22 22 21 24 23 16 . 4 19 20 19 20 13 . . Device 9 | . 14 14 4 4 11 3 7 15 12 . 10 10 13 14 17 17 6 . Storage 8 | . 14 14 17 17 11 18 4 9 5 . 2 6 6 5 5 5 9 . Processor 9 | . . . 10 11 11 11 9 7 5 2 9 9 6 5 7 11 14 8 Hackware 1 | . . . . . . . . . . . 2 6 6 2 . . . 1 Protection 4 | . . . . . . . 10 . . . 4 10 13 11 10 6 4 . Ballistic Gun 16 | . 15 13 28 33 29 19 8 15 12 . 10 14 24 23 21 19 3 . Ballistic Cannon 5 | . 7 13 2 . . 4 2 15 7 . 11 11 . . . . 2 . Naked Turns 138 | . . . . . . . . . 19 35 . . . . . . 84 . Heaviest Build 95 | 11 13 15 23 21 22 21 29 39 35 6 50 69 64 68 75 80 95 15 Greatest Support 196 | 20 20 20 20 20 20 25 40 30 30 3 78 65 55 70 70 126 196 24 Greatest Overweight (x) 16 | . . . 2 1 1 1 . 1 2 1 2 1 1 1 2 2 16 1 Average Overweight (x) . | . . . . . . . . 1 . . . . . . . . . . Largest Inventory Capacity 10 | 6 6 6 6 6 6 6 6 8 8 4 4 4 4 4 4 10 10 4 Average Capacity 5 | 5 6 6 6 6 6 6 4 7 7 4 4 4 4 4 4 5 9 4 Most Carried 10 | 6 6 6 6 6 6 6 6 8 8 4 4 4 4 4 4 10 10 4 Average Carried 5 | 3 5 5 5 5 5 5 4 5 7 4 3 3 3 4 4 4 8 2 Final Capacity 10 | 6 6 6 6 6 6 6 4 8 4 4 4 4 4 4 4 10 4 4 Final Carried 10 | 6 6 6 6 6 6 6 4 8 4 4 4 4 4 4 4 10 4 2 Class Distribution -------------------- 23% | Scavenger-Mutant 18% | Mutant 17% | Scavenger-Gunner 9% | Gunner 8% | Scavenger-Skirmisher 7% | Scavenger-Tank 3% | Commander-Mutant 3% | Tank 3% | Sprinter 3% | Commander-Tank Dominant Class ---------------- Mutant | -10/Materials Mutant | -10/Mines Scavenger-Gunner | -9/Materials Scavenger-Skirmisher | -9/Mines Scavenger-Skirmisher | -9/Exiles Mutant | -8/Mines Scavenger-Mutant | -8/Materials Scavenger-Mutant | -7/Factory Scavenger-Mutant | -7/Waste Mutant | -7/Factory Mutant | -6/Factory Commander-Mutant | -6/Extension Scavenger-Tank | -6/Cetus Scavenger-Gunner | -5/Factory Scavenger-Gunner | -4/Factory Scavenger-Gunner | -3/Research Scavenger-Gunner | -2/Research Sprinter | -1/Access Resources | -11 -10 -10 -9 -9 -9 -8 -8 -7 -7 -7 -6 -6 -6 -5 -4 -3 -2 -1 ----------- Run | Scr Mat Min Mat Min Exi Min Mat Fac Was Fac Fac Ext Cet Fac Fac Res Res Acc Matter Collected 8633 | 290 45 135 1055 205 202 654 419 349 17 . 1805 970 244 125 270 1167 681 . Remotely . | . . . . . . . . . . . . . . . . . . . Salvage Created 9776 | 93 45 123 1013 176 60 422 1271 349 . . 1672 1160 131 103 628 1370 1061 99 Parts 472 | 8 7 14 71 10 3 22 72 18 . . 60 38 7 2 18 70 46 6 Haulers Intercepted 10 | . . . 1 . . . 3 1 . . 3 1 . . . . 1 . Recyclers Shooed 20 | 1 . . . . . . 1 1 . . 5 7 . 1 . 2 2 . Parts Field Recycled . | . . . . . . . . . . . . . . . . . . . Retrieved Matter . | . . . . . . . . . . . . . . . . . . . Parts Self-Destructed . | . . . . . . . . . . . . . . . . . . . Prevented . | . . . . . . . . . . . . . . . . . . . Kills | -11 -10 -10 -9 -9 -9 -8 -8 -7 -7 -7 -6 -6 -6 -5 -4 -3 -2 -1 ------- Run | Scr Mat Min Mat Min Exi Min Mat Fac Was Fac Fac Ext Cet Fac Fac Res Res Acc Combat Hostiles Destroyed 161 | . 3 8 20 3 . 14 21 4 . . 21 15 2 2 8 18 17 5 Melee 13 | . . . . . . . 12 . . . . . . . . 1 . . Guns 107 | . 3 3 16 3 . 12 7 4 . . 11 9 2 2 8 17 10 . Cannons 33 | . . 5 4 . . 2 2 . . . 10 6 . . . . 4 . AOE 7 | . . . . . . . . . . . . . . . . . 2 5 Classes Destroyed 16 | 2 2 1 4 . . 1 3 1 . . . 2 . . . . . . Worker 5 | . . . 1 . . . . . . . 2 . . . . 1 1 . Builder 4 | . 1 . 1 . . . . . . . . . . . . 2 . . Tunneler 5 | 2 . . . . . . 1 . . . 1 . . . . 1 . . Hauler 10 | . . . 1 . . . 3 1 . . 3 1 . . . . 1 . Recycler 15 | 1 . . . 2 . . 2 2 . . 6 1 . . . . 1 . Mechanic 1 | . . . . . . . 1 . . . . . . . . . . . Operator 2 | . . . . . . . 2 . . . . . . . . . . . Watcher 6 | . . . 3 . . . 2 . . . . . . . . . 1 . Swarmer 32 | . 3 6 1 3 . 5 3 . . . . . . . . . 6 5 Grunt 72 | . . 2 10 . . 8 13 3 . . 11 10 . 1 7 3 4 . Duelist 2 | . . . . . . 1 . . . . 1 . . . . . . . Sentry 28 | . . . 9 . . . 4 . . . 4 3 . 1 1 5 1 . Hunter 9 | . . . . . . . 1 . . . 1 . 1 . . 4 2 . Programmer 15 | . . . . . . . . 1 . . 4 . . . . 6 4 . Behemoth 2 | . . . . . . . . . . . . 2 . . . . . . Cetus Guard 1 | . . . . . . . . . . . . . 1 . . . . . Savage 1 | . . . . . . . . . . . . 1 . . . . . . Best Kill Streak 5 | 3 2 3 4 2 . 4 4 3 . . 4 4 2 2 4 3 5 5 Combat Bots Only 5 | . 2 3 4 2 . 4 4 3 . . 3 3 2 2 4 3 5 5 Max Kills in Single Turn 5 | 1 1 1 2 1 . 1 2 1 . . 1 2 1 1 2 2 2 5 Gunslinging . | . . . . . . . . . . . . . . . . . . . Exploded 5 | . . . . . . . . . . . . . . . . . 1 5 Melee 1 | . . . . . . . 1 . . . . . . . . 1 . . Uniques/NPCs Destroyed . | . . . . . . . . . . . . . . . . . . . Combat | -11 -10 -10 -9 -9 -9 -8 -8 -7 -7 -7 -6 -6 -6 -5 -4 -3 -2 -1 -------- Run | Scr Mat Min Mat Min Exi Min Mat Fac Was Fac Fac Ext Cet Fac Fac Res Res Acc Damage Taken 18511 | . 106 465 807 96 . 717 1891 105 92 . 1723 1851 282 102 642 3608 3703 2321 Core 3974 | . 28 84 60 18 . 172 327 30 . . 289 240 26 . 61 275 742 1622 Absorbed by Shields 232 | . . . . . . . . . . . 122 10 100 . . . . . Reduced by Siege Mode 102 | . . . . . . . . . . . . . . . . 70 32 . Core Remaining (%) 68 | 100 . 55 . . . 37 40 . . 95 . . 34 100 94 78 48 . Volleys Fired 604 | 8 24 25 65 12 5 39 45 23 . . 113 68 11 9 20 63 68 6 Largest 5 | 2 2 2 3 3 3 3 3 4 . . 4 4 4 4 5 5 3 1 Hottest 321 | 40 100 100 146 69 100 82 132 134 . . 136 154 126 120 155 321 223 80 Shots Fired 1486 | 16 37 45 178 31 14 97 67 54 . . 274 173 40 26 55 247 126 6 Gun 1153 | 16 15 21 152 31 12 77 49 46 . . 164 143 37 26 55 246 63 . Cannon 305 | . 11 20 17 . . 20 18 8 . . 108 30 3 . . 1 63 6 Launcher 2 | . . . . . . . . . . . 2 . . . . . . . Special 26 | . 11 4 9 . 2 . . . . . . . . . . . . . Kinetic 1426 | 16 26 41 169 31 12 97 67 54 . . 272 173 40 26 55 235 106 6 Thermal 47 | . 11 4 9 . 2 . . . . . . . . . . 11 10 . Explosive 2 | . . . . . . . . . . . 2 . . . . . . . Electromagnetic 11 | . . . . . . . . . . . . . . . . 1 10 . Robot Hit Streak 29 | 8 5 6 13 6 4 13 17 8 . . 17 8 7 5 7 29 14 . Robot Miss Streak 8 | 1 4 2 4 4 1 6 6 2 . . 8 5 3 3 2 4 6 . Penetration Max 2 | . . . . . . . . . . . . 2 1 1 1 1 1 . Secondary Targets 18 | . . . 3 1 . 2 . . . . 2 1 2 1 3 3 . . Max Gunslinging Chain 1 | . . . 1 1 . 1 . . . . 1 1 1 1 1 1 . . Shots Hit Robots 971 | 10 11 26 104 14 6 67 111 35 . . 166 101 28 14 31 164 83 . Core Hits 442 | 4 5 11 44 7 2 30 63 14 . . 97 41 13 5 17 52 32 5 Critical Hits 54 | . 1 . 3 1 . . 2 . . . . 14 5 2 5 14 7 . Critical Kills 19 | . . . . . . . 1 . . . . 4 . . 3 7 4 . Critical Parts Destroyed 35 | . 1 . 3 1 . . 1 . . . . 10 5 2 2 7 3 . Melee Attacks 73 | . . . . . . . 72 . . . . . . . . . . 1 Impact . | . . . . . . . . . . . . . . . . . . . Slashing 73 | . . . . . . . 72 . . . . . . . . . . 1 Piercing . | . . . . . . . . . . . . . . . . . . . Sneak Attacks 11 | . . . . . . . 11 . . . . . . . . . . . Combat Hostiles . | . . . . . . . . . . . . . . . . . . . Follow-up Attacks . | . . . . . . . . . . . . . . . . . . . Damage Inflicted 26369 | 126 213 433 1604 200 127 1064 3362 500 . . 4209 2268 660 436 977 4552 4340 1298 Guns 15578 | 126 119 211 1419 200 127 831 730 451 . . 1985 1658 603 436 959 4491 1232 . Cannons 6402 | . 94 222 180 . . 233 285 49 . . 1958 610 57 . . 33 2681 . Explosions 1970 | . . . . . . . . . . . 249 . . . 18 . 405 1298 Melee 2340 | . . . . . . . 2340 . . . . . . . . . . . Ramming 79 | . . . 5 . . . 7 . . . 17 . . . . 28 22 . Kinetic 21385 | 126 213 433 1599 200 127 1064 1015 500 . . 3943 2268 660 436 959 4412 3430 . Thermal 318 | . . . . . . . . . . . . . . . . 79 239 . Explosive 1791 | . . . . . . . . . . . 249 . . . 18 . 226 1298 Electromagnetic 456 | . . . . . . . . . . . . . . . . 33 423 . Impact . | . . . . . . . . . . . . . . . . . . . Slashing 2340 | . . . . . . . 2340 . . . . . . . . . . . Piercing . | . . . . . . . . . . . . . . . . . . . Highest Corruption 21 | . . . 5 5 5 . . 1 21 21 1 1 . . . 4 6 2 Average Corruption 3 | . . . 4 5 4 . . 1 10 21 1 1 . . . 2 4 1 Corruption Purged 15 | . . . . . 5 . . . . . 2 1 . . . 7 . . Effects 122 | . . . 28 15 25 . . 2 7 10 7 . . . . 15 13 . Message Errors 28 | . . . 3 1 9 . . 1 3 2 2 . . . . 3 4 . Matter Fused 30 | . . . 10 6 5 . . . 1 . . . . . . 3 5 . Heat Flow Errors 13 | . . . 5 2 3 . . . 1 1 . . . . . 1 . . Energy Discharges 7 | . . . 2 1 2 . . 1 . . . . . . . 1 . . Parts Rejected 3 | . . . 1 . 1 . . . . . . . . . . . 1 . Data Loss (minor) 6 | . . . 1 1 . . . . . . 2 . . . . 1 1 . Data Loss (major) 5 | . . . 1 2 2 . . . . . . . . . . . . . Misfires 5 | . . . 1 1 3 . . . . . . . . . . . . . Misdirections 9 | . . . . . . . . . 2 7 . . . . . . . . Targeting Errors 15 | . . . 4 1 . . . . . . 3 . . . . 5 2 . Weapon Failures 1 | . . . . . . . . . . . . . . . . 1 . . Overload Shots . | . . . . . . . . . . . . . . . . . . . Overflow Damage 1203 | . 2 . 3 . . 6 504 . . . 17 28 . . . . 423 220 Projectiles 478 | . 2 . 3 . . 6 . . . . 16 28 . . . . 423 . Explosions 220 | . . . . . . . . . . . . . . . . . . 220 Melee 505 | . . . . . . . 504 . . . 1 . . . . . . . Knockbacks 73 | . 3 4 . . . 6 3 3 . . 28 8 . . . . 18 . Impact 1 | . . . . . . . . . . . . . . . . . 1 . Kinetic 66 | . 3 3 . . . 6 3 3 . . 26 7 . . . . 15 . Secondary 6 | . . 1 . . . . . . . . 2 1 . . . . 2 . Self-Inflicted Damage 209 | . . . . . . . 2 . . . 95 . . . . . 112 . Shots 4 | . . . . . . . . . . . 2 . . . . . 2 . Rammed 7 | . . . . . . . 1 . . . 2 . . . . 3 1 . Targets Rammed 10 | . . . 1 . . . 2 . . . 2 . . . . 4 1 . Kicked 2 | . . . 1 . . . 1 . . . . . . . . . . . Crushed 1 | . . . . . . . . . . . . . . . . 1 . . Highest Temperature 379 | . 42 62 260 236 253 180 275 21 198 243 222 379 6 . 30 229 301 18 Average Temperature 67 | . 18 23 39 47 81 52 115 13 113 124 46 132 3 . 13 119 105 9 Received Heat Transfer 3789 | . . 126 285 . . 324 882 45 . . 528 693 48 18 168 276 351 45 Effects 1 | . . . . . . . . . . . . 1 . . . . . . Short Circuit 1 | . . . . . . . . . . . . 1 . . . . . . Siege Activations 5 | . . . . . . . . . . . . . . . . 3 2 . Total Turns 194 | . . . . . . . . . . . . . . . . 94 100 . Longest Duration 82 | . . . . . . . . . . . . . . . . 59 82 . Robots Corrupted 1 | . . . . . . . . . . . . . . . . . 1 . Combat Hostiles 1 | . . . . . . . . . . . . . . . . . 1 . Parts Fried 1 | . . . . . . . . . . . . . . . . . 1 . Impact Corruptions 3 | . . . . . . . . . . . 1 1 . . . . 1 . Robots Melted . | . . . . . . . . . . . . . . . . . . . Combat Hostiles . | . . . . . . . . . . . . . . . . . . . Parts Melted 5 | . . . . . . 1 . . . . . 2 . 1 . . 1 . Heat Transferred 444 | . . . . . . . . . . . . . . . . 148 296 . Parts Sabotaged . | . . . . . . . . . . . . . . . . . . . Parts Stolen . | . . . . . . . . . . . . . . . . . . . Parts Stripped . | . . . . . . . . . . . . . . . . . . . Power Chain Reactions 1 | . . . . . . . . . . . . . . . . . . 1 Missiles Intercepted . | . . . . . . . . . . . . . . . . . . . Alert | -11 -10 -10 -9 -9 -9 -8 -8 -7 -7 -7 -6 -6 -6 -5 -4 -3 -2 -1 ------- Run | Scr Mat Min Mat Min Exi Min Mat Fac Was Fac Fac Ext Cet Fac Fac Res Res Acc Peak Influence 1759 | 15 90 209 317 183 . 270 506 234 66 42 333 368 492 742 704 495 693 1759 Initial 415 | . 9 34 81 70 . . 27 229 51 32 20 132 205 263 363 369 203 415 Average 223 | 7 43 141 178 107 . 115 208 174 59 39 108 200 330 446 521 387 324 773 Maximum Alert Level 5 | . . 1 1 . . 1 2 1 . . 1 1 2 3 3 2 2 5 Low Security (%) 53 | 100 100 93 67 100 . 81 55 42 100 100 88 58 . . . . 2 . Level 1 33 | . . 6 32 . . 18 24 57 . . 11 41 75 60 20 57 85 . Level 2 11 | . . . . . . . 19 . . . . . 24 6 77 42 12 58 Level 3 1 | . . . . . . . . . . . . . . 33 1 . . 25 Level 4 . | . . . . . . . . . . . . . . . . . . 11 Level 5 . | . . . . . . . . . . . . . . . . . . 4 High Security . | . . . . . . . . . . . . . . . . . . . Max Security . | . . . . . . . . . . . . . . . . . . . Squads Dispatched 44 | . 2 . 3 . . . 3 2 . . 7 4 . 4 4 4 6 5 Investigation 14 | . . . 2 . . . . . . . 2 3 . 1 1 . 1 4 Extermination 11 | . . . . . . . . 1 . . 3 . . . . 3 3 1 Reinforcement 14 | . 2 . 1 . . . 3 1 . . 2 1 . 1 . 1 2 . Assault 1 | . . . . . . . . . . . . . . 1 . . . . Garrison 4 | . . . . . . . . . . . . . . 1 3 . . . Intercept . | . . . . . . . . . . . . . . . . . . . Construction Impeded 3 | . . . . . . . 1 . . . . 1 . . . 1 . . Haulers Reinforced 3 | . . . . . . . . 1 . . 1 . . 1 . . . . Stealth | -11 -10 -10 -9 -9 -9 -8 -8 -7 -7 -7 -6 -6 -6 -5 -4 -3 -2 -1 --------- Run | Scr Mat Min Mat Min Exi Min Mat Fac Was Fac Fac Ext Cet Fac Fac Res Res Acc Distress Signals 16 | . . 1 4 . . . 3 . . . 1 1 2 1 . . 1 2 Communications Jammed . | . . . . . . . . . . . . . . . . . . . Distress Signals . | . . . . . . . . . . . . . . . . . . . Times Spotted 333 | . 5 8 36 5 . 16 37 4 6 . 29 27 12 8 9 19 39 73 Peak Tracking Total 22 | . 3 3 5 3 . 4 4 3 6 . 5 5 6 5 4 3 9 22 Tactical Retreats 37 | . . . 2 2 . . 7 . . . 3 4 . . 1 . 7 11 Traps | -11 -10 -10 -9 -9 -9 -8 -8 -7 -7 -7 -6 -6 -6 -5 -4 -3 -2 -1 ------- Run | Scr Mat Min Mat Min Exi Min Mat Fac Was Fac Fac Ext Cet Fac Fac Res Res Acc Traps Triggered 17 | . . . 5 . . . 1 1 . . 4 2 . 1 . 1 2 . Indirectly . | . . . . . . . . . . . . . . . . . . . Trap Hack Attempts . | . . . . . . . . . . . . . . . . . . . Triggered . | . . . . . . . . . . . . . . . . . . . Disarmed . | . . . . . . . . . . . . . . . . . . . Reprogrammed . | . . . . . . . . . . . . . . . . . . . Reused . | . . . . . . . . . . . . . . . . . . . Traps Extracted . | . . . . . . . . . . . . . . . . . . . Installed 3 | . . . . 3 . . . . . . . . . . . . . . Triggered . | . . . . . . . . . . . . . . . . . . . Machines | -11 -10 -10 -9 -9 -9 -8 -8 -7 -7 -7 -6 -6 -6 -5 -4 -3 -2 -1 ---------- Run | Scr Mat Min Mat Min Exi Min Mat Fac Was Fac Fac Ext Cet Fac Fac Res Res Acc Machines Disabled 18 | . . 1 . . . . . . . . 1 1 . 1 6 3 3 2 Max in Single Turn 2 | . . 1 . . . . . . . . 1 1 . . 2 1 1 1 Garrison Access 2 | . . . . . . . 1 . . . . . . 1 . . . . Machines Sabotaged . | . . . . . . . . . . . . . . . . . . . Garrisons Compromised . | . . . . . . . . . . . . . . . . . . . Overloaded Fab Kills 6 | . . . . . . . . . . . . . . . . . . 6 Fab Network Shutdowns . | . . . . . . . . . . . . . . . . . . . Hacking | -11 -10 -10 -9 -9 -9 -8 -8 -7 -7 -7 -6 -6 -6 -5 -4 -3 -2 -1 --------- Run | Scr Mat Min Mat Min Exi Min Mat Fac Was Fac Fac Ext Cet Fac Fac Res Res Acc Machines Accessed 60 | . 5 . 9 1 2 . 8 . . 1 7 11 1 . 1 2 5 7 Terminals 47 | . 4 . 7 1 . . 6 . . 1 5 9 1 . 1 2 4 6 Fabricators 1 | . . . . . . . . . . . . . . . . . . 1 Repair Stations 1 | . . . 1 . . . . . . . . . . . . . . . Recycling Units 5 | . 1 . . . . . 1 . . . 1 2 . . . . . . Scanalyzers 1 | . . . 1 . . . . . . . . . . . . . . . Garrison Access 3 | . . . . . . . 1 . . . 1 . . . . . 1 . Total Hacks 169 | . 19 . 30 2 15 . 23 . . 6 15 23 2 . 3 4 10 17 Successful 88 | . 13 . 16 1 15 . 16 . . 2 4 9 . . 2 2 1 7 Failed 81 | . 6 . 14 1 . . 7 . . 4 11 14 2 . 1 2 9 10 Catastrophic 11 | . . . 2 . . . . . . . 2 . . . . 1 2 4 Database Lockouts . | . . . . . . . . . . . . . . . . . . . Manual 72 | . 13 . 12 2 1 . 9 . . 1 8 6 1 . 1 3 4 11 Terminals 126 | . 17 . 22 2 . . 20 . . 6 9 19 2 . 3 4 9 13 Fabricators 4 | . . . . . . . . . . . . . . . . . . 4 Repair Stations 7 | . . . 7 . . . . . . . . . . . . . . . Recycling Units 9 | . 2 . . . . . 1 . . . 2 4 . . . . . . Scanalyzers 1 | . . . 1 . . . . . . . . . . . . . . . Garrison Access 7 | . . . . . . . 2 . . . 4 . . . . . 1 . Terminal Hacks 51 | . 8 . 6 1 15 . 8 . . 1 1 5 . . 1 1 1 3 Record 16 | . . . . . 15 . . . . . . . . . . . . 1 Robot Analysis 3 | . 3 . . . . . . . . . . . . . . . . . Prototype ID Bank 3 | . 2 . 1 . . . . . . . . . . . . . . . Open Door 6 | . . . . . . . . . . . 1 5 . . . . . . Branch Access Points 3 | . . . . 1 . . 1 . . 1 . . . . . . . . Terminal Index 1 | . . . 1 . . . . . . . . . . . . . . . Alert Level 6 | . 2 . 1 . . . 2 . . . . . . . . 1 . . Unreport Threat 1 | . . . 1 . . . . . . . . . . . . . . . Locate Traps 4 | . . . 1 . . . 1 . . . . . . . . . . 2 Surveillance Status 1 | . . . . . . . . . . . . . . . . . 1 . Hauler Manifests 1 | . . . . . . . 1 . . . . . . . . . . . Zone Layout 6 | . 1 . 1 . . . 3 . . . . . . . 1 . . . Fabricator Hacks . | . . . . . . . . . . . . . . . . . . . Repair Station Hacks 6 | . . . 6 . . . . . . . . . . . . . . . Scan Component 3 | . . . 3 . . . . . . . . . . . . . . . Repair 3 | . . . 3 . . . . . . . . . . . . . . . Recycling Unit Hacks 5 | . 1 . . . . . 1 . . . 1 2 . . . . . . Retrieve Components 5 | . 1 . . . . . 1 . . . 1 2 . . . . . . Scanalyzer . | . . . . . . . . . . . . . . . . . . . Garrison Access Hacks 1 | . . . . . . . 1 . . . . . . . . . . . Seal Access 1 | . . . . . . . 1 . . . . . . . . . . . Unauthorized Hacks 25 | . 4 . 4 . . . 6 . . 1 2 2 . . 1 1 . 4 Terminals 23 | . 4 . 3 . . . 6 . . 1 2 2 . . 1 1 . 3 Track 18 | . 2 . 3 . . . 4 . . 1 2 2 . . 1 1 . 2 Botnet 2 | . 1 . . . . . 1 . . . . . . . . . . . Detonate 1 | . . . . . . . . . . . . . . . . . . 1 Operators 2 | . 1 . . . . . 1 . . . . . . . . . . . Fabricators 1 | . . . . . . . . . . . . . . . . . . 1 Overload 1 | . . . . . . . . . . . . . . . . . . 1 Repair Stations . | . . . . . . . . . . . . . . . . . . . Recycling Units . | . . . . . . . . . . . . . . . . . . . Scanalyzers 1 | . . . 1 . . . . . . . . . . . . . . . Extract 1 | . . . 1 . . . . . . . . . . . . . . . Garrison Access . | . . . . . . . . . . . . . . . . . . . Data Cores Recovered . | . . . . . . . . . . . . . . . . . . . Used . | . . . . . . . . . . . . . . . . . . . Hacking Detections 50 | . 4 . 8 1 . . 7 . . 1 6 8 1 . 1 2 5 6 Full Trace Events 12 | . . . 2 . . . 1 . . . 1 3 . . 1 . 1 3 Feedback Events 1 | . . . . . . . . . . . . 1 . . . . . . Corruption 1 | . . . . . . . . . . . . 1 . . . . . . Feedback Blocked . | . . . . . . . . . . . . . . . . . . . Robot Schematics Acquired . | . . . . . . . . . . . . . . . . . . . Robots Built . | . . . . . . . . . . . . . . . . . . . Matter . | . . . . . . . . . . . . . . . . . . . Time . | . . . . . . . . . . . . . . . . . . . Total Robot Build Rating . | . . . . . . . . . . . . . . . . . . . Part Schematics Acquired 4 | . . . 4 . . . . . . . . . . . . . . . Parts Built . | . . . . . . . . . . . . . . . . . . . Matter . | . . . . . . . . . . . . . . . . . . . Time . | . . . . . . . . . . . . . . . . . . . Total Part Build Rating . | . . . . . . . . . . . . . . . . . . . Parts Repaired 3 | . . . 3 . . . . . . . . . . . . . . . Time 84 | . . . 84 . . . . . . . . . . . . . . . Parts Recycled . | . . . . . . . . . . . . . . . . . . . Recycled Matter . | . . . . . . . . . . . . . . . . . . . Retrieved Matter . | . . . . . . . . . . . . . . . . . . . Retrieved Components 33 | . 2 . . . . . 10 . . . 1 20 . . . . . . Parts Scanalyzed . | . . . . . . . . . . . . . . . . . . . Part Schematics Acquired . | . . . . . . . . . . . . . . . . . . . Parts Damaged . | . . . . . . . . . . . . . . . . . . . Bothacking | -11 -10 -10 -9 -9 -9 -8 -8 -7 -7 -7 -6 -6 -6 -5 -4 -3 -2 -1 ------------ Run | Scr Mat Min Mat Min Exi Min Mat Fac Was Fac Fac Ext Cet Fac Fac Res Res Acc Used RIF Installer . | . . . . . . . . . . . . . . . . . . . Robots Hacked . | . . . . . . . . . . . . . . . . . . . Non-combat . | . . . . . . . . . . . . . . . . . . . Combat . | . . . . . . . . . . . . . . . . . . . Robot Hacks Applied . | . . . . . . . . . . . . . . . . . . . Relay Couplers Released 3 | . . . . . . . . . . . . . . 3 . . . . Machine Destruction 3 | . . . . . . . . . . . . . . 3 . . . . Robots Rewired 22 | . . . . . 4 . . . . . . 18 . . . . . . Allies Hacked . | . . . . . . . . . . . . . . . . . . . Hacks Repelled . | . . . . . . . . . . . . . . . . . . . Allies | -11 -10 -10 -9 -9 -9 -8 -8 -7 -7 -7 -6 -6 -6 -5 -4 -3 -2 -1 -------- Run | Scr Mat Min Mat Min Exi Min Mat Fac Was Fac Fac Ext Cet Fac Fac Res Res Acc Total Allies 33 | . . . . . 4 . . . . . . 24 5 . . . . . Largest Group 11 | . . . . . 4 3 . . . . . 9 11 7 2 . . . Highest-Rated Group 697 | . . . . . 32 24 . . . . . 372 697 498 181 . . . Highest-Rated Ally 150 | . . . . . 8 8 . . . . . 150 150 144 94 . . . Total Orders . | . . . . . . . . . . . . . . . . . . . Ally Attacks 284 | . . . . . . 9 . . . . . 147 86 38 4 . . . Total Damage 6599 | . . . . . . 67 . . . . . 3034 2117 1191 190 . . . Kills 38 | . . . . . . 2 . . . . . 19 10 7 . . . . Allies Corrupted . | . . . . . . . . . . . . . . . . . . . Allies Melted . | . . . . . . . . . . . . . . . . . . . Intel | -11 -10 -10 -9 -9 -9 -8 -8 -7 -7 -7 -6 -6 -6 -5 -4 -3 -2 -1 ------- Run | Scr Mat Min Mat Min Exi Min Mat Fac Was Fac Fac Ext Cet Fac Fac Res Res Acc Robot Analysis Total 3 | . 3 . . . . . . . . . . . . . . . . . Derelict Logs Recovered . | . . . . . . . . . . . . . . . . . . . Drone Launches . | . . . . . . . . . . . . . . . . . . . Drone Recoveries . | . . . . . . . . . . . . . . . . . . . Exploration | -11 -10 -10 -9 -9 -9 -8 -8 -7 -7 -7 -6 -6 -6 -5 -4 -3 -2 -1 ------------- Run | Scr Mat Min Mat Min Exi Min Mat Fac Was Fac Fac Ext Cet Fac Fac Res Res Acc Turns Passed 13836 | 115 606 287 1758 487 1024 575 1126 696 123 61 2007 1415 315 279 303 1243 1051 365 Spaces Moved 8708 | 68 325 147 917 327 614 342 609 403 110 115 1027 757 157 176 185 565 729 1135 Core 495 | 13 . . . . . . . . 38 115 108 . . . . . 210 11 Treads 1347 | . . . . . . . . . . . 724 . . . . 288 335 . Legs 5530 | 55 325 147 917 327 614 342 609 403 72 . 167 757 157 176 185 277 . . Wheels 28 | . . . . . . . . . . . 28 . . . . . . . Hover . | . . . . . . . . . . . . . . . . . . . Flight 1308 | . . . . . . . . . . . . . . . . . 184 1124 Fastest Speed 14 | 50 120 120 120 120 120 120 120 150 50 50 50 120 120 120 120 120 14 14 Average Speed 113 | 106 120 120 130 134 131 120 120 150 104 50 144 123 144 136 125 151 92 23 Slowest Speed 850 | 120 120 120 180 150 150 150 120 150 180 100 180 150 150 150 180 185 850 100 Overloaded Moves . | . . . . . . . . . . . . . . . . . . . Propulsion Burnouts . | . . . . . . . . . . . . . . . . . . . Robots Hopped 13 | . . . . . . . . . . . . . . . . . 1 12 Cave-ins Triggered . | . . . . . . . . . . . . . . . . . . . Exploration Rate (%) 42 | 5 53 49 76 55 90 67 48 6 85 3 27 86 68 9 7 12 29 40 Regions Visited 18 Branch Regions 6 Pre-discovered Areas 1 | . . . . . 1 . . . . . . . . . . . . . Known Exits Taken 6 | . . . . . . . . . . 1 1 . 1 . 1 1 1 . Unknown Exits Taken 10 | 1 1 1 1 1 1 1 1 . . . . 1 . 1 . . . . Scrap Searched 3 | . . 1 . 1 . 1 . . . . . . . . . . . . Spaces Dug 92 | . 11 4 8 . 1 . 12 . . . 3 . . . 10 2 7 34 Terrain Destroyed 207 | . 11 4 8 . 1 . 12 . . . 26 5 2 18 37 8 32 43 Melee 13 | . . . . . . . 12 . . . . . . . . . . 1 Projectile 129 | . 11 4 8 . 1 . . . . . 15 5 2 18 30 8 22 5 AOE 65 | . . . . . . . . . . . 11 . . . 7 . 10 37 Terrain Rammed . | . . . . . . . . . . . . . . . . . . . Walls Destroyed . | . . . . . . . . . . . . . . . . . . . Machines Disabled . | . . . . . . . . . . . . . . . . . . . Actions | -11 -10 -10 -9 -9 -9 -8 -8 -7 -7 -7 -6 -6 -6 -5 -4 -3 -2 -1 --------- Run | Scr Mat Min Mat Min Exi Min Mat Fac Was Fac Fac Ext Cet Fac Fac Res Res Acc Total 11281 | 92 480 203 1312 352 819 426 828 449 117 116 1351 1111 222 194 215 798 979 1217 Wait 1265 | 4 120 24 280 8 128 23 69 6 6 . 153 78 40 6 4 124 121 71 Move 8666 | 67 324 146 916 326 613 341 608 403 109 114 1026 756 156 175 184 564 726 1112 Hop 12 | . . . . . . . . . . . . . . . . . 1 11 Pick Up 55 | 6 2 1 4 1 3 3 5 4 . . 4 1 2 . 1 8 8 2 Fast Attach 156 | 7 1 2 13 . 6 5 15 5 . 2 26 14 6 2 5 21 21 5 Attach 38 | . . 2 3 . . 2 7 1 1 . 4 2 . . . 3 10 3 Detach 23 | . . 1 1 . . 1 1 3 . . 1 3 1 1 . 3 5 2 Swap 46 | . 6 2 19 1 4 7 1 . . . 1 1 . 1 . 1 2 . Drop 89 | . 3 . 10 1 8 5 3 4 1 . 15 5 6 . 1 7 16 4 Fire 604 | 8 24 25 65 12 5 39 45 23 . . 113 68 11 9 20 63 68 6 Melee 73 | . . . . . . . 72 . . . . . . . . . . 1 Ram 1 | . . . . . . . . . . . 1 . . . . . . . Kick 3 | . . . 1 . . . 2 . . . . . . . . . . . Crush 6 | . . . . . . . . . . . 1 . . . . 4 1 . Escape Stasis 16 | . . . . . . . . . . . 6 10 . . . . . . Rewire 225 | . . . . . 52 . . . . . . 173 . . . . . . Trap 3 | . . . . 3 . . . . . . . . . . . . . . Miscellaneous . | . . . . . . . . . . . . . . . . . . . Route ------- -11/Scrapyard -10/Materials (discovered 3 exits: *Mat x2 / [*Min]) -10/Mines -9/Materials (discovered 4 exits: *Mat x3 / *Min) -9/Mines (discovered 2 exits: *Mat / *Exi) -9/Exiles (discovered 2 exits: [*Min x2]) -8/Mines -8/Materials -7/Factory -7/Waste -7/Factory (discovered 4 exits: *Fac / Sto / Low x2) -6/Factory (discovered 3 exits: *Fac x2 / *Ext) -6/Extension (discovered 2 exits: *Fac / *Cet) -6/Cetus (discovered 2 exits: *Fac / [*Arc]) -5/Factory -4/Factory -3/Research -2/Research -1/Access History --------- Turn | Location | Event 2 | -11/Scrapyard | Met Revision 17 72 | -11/Scrapyard | Discovered new exit (range 12) 116 | -11/Scrapyard | Entered Materials 212 | -10/Materials | Discovered new exit (range 9) 212 | -10/Materials | Discovered new exit (range 9) 315 | -10/Materials | Build established: Mutant 695 | -10/Materials | Discovered new exit (range 7) 722 | -10/Materials | Entered Mines 759 | -10/Mines | Assembled infested the area 921 | -10/Mines | Discovered new exit (range 8) 1009 | -10/Mines | Entered Materials 1009 | -9/Materials | Evolved 2 slots: Utility x1, Weapon x1 1051 | -9/Materials | Repaired Assault Rifle 1078 | -9/Materials | Repaired Aluminum Leg 1111 | -9/Materials | Repaired Imp. Terrain Scanner 1673 | -9/Materials | Discovered new exit (range 10) 1825 | -9/Materials | Discovered new exit (range 12) 2519 | -9/Materials | Discovered new exit (range 9) 2740 | -9/Materials | Discovered new exit (range 15) 2767 | -9/Materials | Entered Mines 2854 | -9/Mines | Build established: Gunner 2916 | -9/Mines | Discovered new exit (range 6) 3060 | -9/Mines | Found a hidden stash of uninstalled traps 3248 | -9/Mines | Deemed a non-threat by the Exiles lab entrance 3249 | -9/Mines | Discovered new exit (range 5) 3254 | -9/Mines | Entered Exiles 3254 | -9/Exiles | Found Exiles lab destroyed 3640 | -9/Exiles | Build established: Scavenger-Skirmisher 3732 | -9/Exiles | Learned location of Zion (-7) 4104 | -9/Exiles | Discovered new exit (range 12) 4257 | -9/Exiles | Discovered new exit (range 15) 4278 | -9/Exiles | Entered Mines 4278 | -8/Mines | Accompanied by 4 allies 4624 | -8/Mines | Core integrity fell below 50% 4846 | -8/Mines | Discovered new exit (range 7) 4853 | -8/Mines | Entered Materials 4853 | -8/Materials | Evolved 2 slots: Propulsion x1, Utility x1 5009 | -8/Materials | Discovered new exit (range 5) 5063 | -8/Materials | Build established: Scavenger-Mutant 5813 | -8/Materials | Core integrity fell below 50% 5850 | -8/Materials | Lost 4 parts (2u2w) 5979 | -8/Materials | Entered Factory 5979 | -7/Factory | Evolved 2 slots: Utility x1, Weapon x1 6223 | -7/Factory | Discovered new exit (range 14) 6675 | -7/Factory | Sucked down chute 6675 | -7/Factory | Entered Waste 6687 | -7/Waste | Spotted C-40 Crusher 6687 | -7/Waste | Spotted C-40 Crusher 6690 | -7/Waste | EMP discharged 6690 | -7/Waste | System corruption reached 10% 6693 | -7/Waste | Spotted C-40 Crusher 6705 | -7/Waste | Spotted C-40 Crusher 6707 | -7/Waste | Spotted C-40 Crusher 6754 | -7/Waste | Spotted C-40 Crusher 6757 | -7/Waste | Crushed by Compactor (1 part destroyed, 2 dropped) 6779 | -7/Waste | Crushed by Compactor (1 part destroyed, 2 dropped) 6779 | -7/Waste | Released all parts (6) 6789 | -7/Waste | Discovered new exit (range 16) 6790 | -7/Waste | EMP discharged 6798 | -7/Waste | Entered Factory 6816 | -7/Factory | Identified exit to Storage 6816 | -7/Factory | Identified exit to Lower Caves 6852 | -7/Factory | Discovered new exit (range 7) 6855 | -7/Factory | Identified exit to Factory 6859 | -7/Factory | Entered another Factory area 6859 | -6/Factory | Evolved 2 slots: Utility x2 7097 | -6/Factory | Build established: Mutant 7331 | -6/Factory | Discovered new exit (range 9) 7435 | -6/Factory | Identified exit to Factory 7540 | -6/Factory | Discovered exit to Factory (range 15) 7844 | -6/Factory | Build established: Tank 8862 | -6/Factory | Discovered new exit (range 6) 8865 | -6/Factory | Identified exit to Extension 8866 | -6/Factory | Entered Extension 9213 | -6/Extension | Rescued a captive Derelict 9279 | -6/Extension | Rescued a captive Derelict 9365 | -6/Extension | Build established: Commander-Mutant 9538 | -6/Extension | Spotted B-75 Beast 9544 | -6/Extension | Spotted B-75 Beast 9552 | -6/Extension | Destroyed B-75 Beast 9573 | -6/Extension | Core integrity fell below 50% 9584 | -6/Extension | Destroyed B-75 Beast 9647 | -6/Extension | Lost 5 parts (1n2u2w) 9712 | -6/Extension | Rescued a captive Derelict 9712 | -6/Extension | Rescued a captive Derelict 9886 | -6/Extension | Rescued a captive Derelict 9966 | -6/Extension | Disrupted transfer network 10137 | -6/Extension | Rescued A7 10248 | -6/Extension | Build established: Commander-Tank 10249 | -6/Extension | Discovered exit to Factory (range 10) 10251 | -6/Extension | Discovered new exit (range 6) 10281 | -6/Extension | Entered Cetus 10281 | -6/Cetus | Accompanied by 9 allies (A7) 10286 | -6/Cetus | Acquired a Cetus Manufacturing Module code from A7 10298 | -6/Cetus | Spotted Cetus Guard 10298 | -6/Cetus | Spotted Cetus Guard 10300 | -6/Cetus | Spotted Cetus Guard 10303 | -6/Cetus | Spotted Cetus Guard 10308 | -6/Cetus | Allies destroyed Cetus Guard 10309 | -6/Cetus | Allies destroyed Cetus Guard 10318 | -6/Cetus | Allies destroyed Cetus Guard 10322 | -6/Cetus | Allies destroyed Cetus Guard 10391 | -6/Cetus | Started Cetus Manufacturing Module 10416 | -6/Cetus | Manufactured an Enhanced Grunt 10441 | -6/Cetus | Manufactured an Enhanced Grunt 10466 | -6/Cetus | Manufactured an Enhanced Grunt 10471 | -6/Cetus | Discovered new exit (range 15) 10491 | -6/Cetus | Manufactured an Enhanced Grunt 10497 | -6/Cetus | Spotted Cetus Guard 10498 | -6/Cetus | Spotted Cetus Guard 10501 | -6/Cetus | Spotted Cetus Guard 10508 | -6/Cetus | Allies destroyed Cetus Guard 10509 | -6/Cetus | Destroyed Cetus Guard 10509 | -6/Cetus | Spotted Cetus Guard 10516 | -6/Cetus | Manufactured an Enhanced Grunt 10517 | -6/Cetus | Allies destroyed Cetus Guard 10533 | -6/Cetus | Discovered exit to Factory (range 15) 10534 | -6/Cetus | Allies destroyed Cetus Guard 10544 | -6/Cetus | Met Revision 17 10596 | -6/Cetus | Entered Factory 10596 | -5/Factory | Accompanied by 7 allies (A7) 10596 | -5/Factory | Evolved 2 slots: Propulsion x1, Weapon x1 10756 | -5/Factory | Garrison activated, responded to threat 10858 | -5/Factory | Discovered new exit (range 11) 10875 | -5/Factory | Entered another Factory area 10875 | -4/Factory | Accompanied by 2 allies 10875 | -4/Factory | Evolved 2 slots: Utility x2 10923 | -4/Factory | Garrison activated, responded to threat 11002 | -4/Factory | Found Prototype Processor 11002 | -4/Factory | Identified Exp. Signal Interpreter 11158 | -4/Factory | Discovered new exit (range 10) 11175 | -4/Factory | Identified exit to Research 11178 | -4/Factory | Entered Research 11178 | -3/Research | Evolved 2 slots: Propulsion x1, Utility x1 11353 | -3/Research | Spotted B-86 Titan 11775 | -3/Research | Build established: Scavenger-Tank 12127 | -3/Research | Build established: Scavenger-Gunner 12169 | -3/Research | Lost 11 parts (1p2n4u4w) 12295 | -3/Research | Discovered new exit (range 8) 12325 | -3/Research | Identified exit to Research 12421 | -3/Research | Entered another Research area 12421 | -2/Research | Evolved 2 slots: Propulsion x1, Utility x1 13140 | -2/Research | Found Prototype Processor 13140 | -2/Research | Identified Exp. Melee Analysis Suite 13171 | -2/Research | Lost 3 parts (1n2u) 13264 | -2/Research | Spotted B-90 Cyclops 13303 | -2/Research | Released all parts (10) 13332 | -2/Research | Lost 7 parts (3n2u2w) 13464 | -2/Research | Core integrity fell below 50% 13465 | -2/Research | Found Exp. Signal Interpreter 13471 | -2/Research | Discovered new exit (range 14) 13472 | -2/Research | Identified exit to Access 13472 | -2/Research | Entered Access 13472 | -1/Access | Evolved 2 slots: Utility x2 13627 | -1/Access | Spotted B-99 Colossus 13660 | -1/Access | Spotted B-99 Colossus 13675 | -1/Access | Core integrity fell below 50% 13704 | -1/Access | Lost 4 parts (3n1u) 13784 | -1/Access | Core integrity fell below 20% 13812 | -1/Access | Found Prototype Slashing Weapon 13812 | -1/Access | Identified Centrium Greatsword 13837 | -1/Access | Destroyed by H-88 Terminator with KE Penetrator Last Messages --------------- >>Trojan(Detonate) Trojan loaded successfully. Testing... Scanning machine control network... Found 2 applicable machines. AWUDQUXH3H: Wave Collapse Detector Q3KXV7J9GB: Wave Collapse Detector Infected machine control systems. 13812_ Acquired Prototype Slashing Weapon. 13812_ Identified Centrium Greatsword. 13830_ Wave Collapse Detector detonated. 13830_ Destroyed Prototype Energy Gun. 13830_ Destroyed Adv. Heat Sink. 13832_ The unstable cave ceiling collapses. 13834_ Imp. Diametric Drive destroyed. 13834_ C-30 ARC bursts open, deploying its payload. 13834_ H-88 Terminator unfolds itself. 13834_ Penetrated by Slug. 13834_ Slug penetrates Wall. 13837_ Penetrated by Slug. Map ----- +----------------------------------------------------+ | ???????????# #?????????????????????????? | | ???????????# ! #? ??????????????????????? | | ???????????# " #? ??????????????????????? | | ????????????# """ #? ??????????????????????? | | ????????????# """ ^ #? ??????????????????????? | | ????????????# ^ "^ ## ??????????????????????? | | ????????????# ! ## #?????????????????????? | | ????????????# ## #?????????????????????? | | ????????????##### # #### #?????????????????????? | | ???????????????# #?# #?????????????????????? | | ?????#+######### #?# #?????????????????????? | | ?# / ! " #?#h%#?????????????????????? | | ?# ## "T #?# h#?????????????????????? | | ?# ??# #?# #?????????????????????? | | ?# !! ???# #?# #?????????????????????? | | ?# ?! ?????### ###?# #?????????????????????? | | ?# ? !!????????# #???# #?????????????????????? | | ???? ??????????# #???# #?????????????????????? | | ??? ???????????# #???# #?????????????????????? | | ?? ?????????????# #???# #????????###??????????? | | ?? ??????????????# #???# ##########;#??????????? | | ?????????????????# #???# # ##??????????? | | ?????????????????# #???# # #???????????? | | ?????????????????# #???# # ##??????????? | | ?????????????????# #???# ] #??????????? | | ?????????????????# #???#@ #??????????? | | ??????????#??????# #???# #??????????? | | #""" """## ###### #???# p #??????????? | | ##### pp #??????????? | | # s# ##??????????? | | # s #???????????? | | "" #####+##########g# # ###???????????? | | ?? "" ?# #??# ######?????????????? | | ???"""""" ??# #### ####???????????????? | | ?"""""????# """"" + #????##########?? | | ?" ?????# | ""Y"" ####### #??? ??? | | ""??????# #?????# #??? ????? | | ????# #?????# #?? ???? | | ??# #?????# #?? " ?????? | | ###+############### ## """" ??? | | # """"" #?? | | ! + """"" ???? | | ######### ##########+###### # """" #?? | | ????????##+#????????? ???# # " ??? | | ??????????????????? ?+ +? #?? | | ?????????????????# ######? #?? | | ?????????????????# #??????? #?? | | ?????????????????# #???????###########?? | | ?????????????????# #???????????????????? | | ?????????????????# #???????????????????? | +----------------------------------------------------+ Best States ------------- Heat Dissipation 84 Energy Generation 25 Energy Capacity 350 Matter Stores 550 Matter Capacity 800 Sight Range 22 Terrain Scan Range 16 Terrain Scan Density 85 Armor Coverage 1200 Resistance: KI 30 Resistance: TH 15 Resistance: EM 20 Propulsion Shielding 66 Phase Shifting 10 Evasion (%) 67 Targeting Accuracy 6 Armor Integrity Analysis 50 Recoil Reduction 6 Kinecelleration 40 Overload Regulation 60 Offensive Hacking 10 Item Schematics ----------------- Seismic Analyzer | -9/Materials | Extracted EM Shotgun | -9/Materials | Extracted Imp. Light Cannon | -9/Materials | Extracted Imp. Treads | -9/Materials | Extracted Robot Schematics ------------------ None Fabricated ------------ Nothing Alien Tech Used ----------------- None Achievements -------------- None Challenges ------------ None Game ------ Seed FireAlertSplitter Manual? 0 Play Time 02:05:25 Cumulative 257.2 hours Start 2021.06.03 @ 16:12:12 End 2021.06.04 @ 11:12:41 Sessions 3 Manual Loads 0 Difficulty Rogue Special Mode None Game No. 349 Rogue 345 Adventurer 0 Explorer 4 Win Type - Total 5 Types 4/0/0/1/0/0/0/0/0 Lore% 79 Gallery% 88 Achievement% 62 Wizard Run 0 Options --------- ASCII 1 Keyboard 1 Movement Numpad Keybinds 0 Fullscreen 2 Font 18/TerminusBold Map View 76x50 Tactical HUD 1 Map Filters NONE Filters NONE Steam X RUN: 67f1dbeb-1fef-4c0b-ab37-9b532fde272d